fUST/lending_fUST_20250901
["ID","MTS","AMOUNT","RATE_DAILY","PERIOD"]
[382575588,1756673444821,-480.0,0.00016825,2]
[382575590,1756673444831,-480.0,0.00016825,2]
[382575592,1756673444840,-480.0,0.00016825,2]
[382575594,1756673444850,-151.943352,0.00016825,2]
[382575596,1756673444859,-151.0,0.00016825,2]
[382575598,1756673444869,-151.0,0.00016825,2]
[382575600,1756673444878,-480.0,0.00016825,2]
[382575602,1756673444887,-1186.69,0.00016825,2]
[382575604,1756673444896,-842.98,0.00016825,2]
[382575606,1756673444905,-151.0,0.00016825,2]
[382575607,1756673444915,-151.0,0.00016825,2]
[382575609,1756673444924,-151.0,0.00016825,2]
[382575611,1756673444934,-825.1,0.00016825,2]
[382575613,1756673444943,-151.0,0.00016825,2]
[382575615,1756673444952,-881.13,0.00016825,2]
[382575618,1756673444972,-1039.06,0.00016825,2]
[382575621,1756673444983,-3326.58,0.00016825,2]
[382575623,1756673444993,-722.88,0.00016825,2]
[382575625,1756673445003,-1423.76,0.00016825,2]
[382575627,1756673445013,-480.0,0.00016825,2]
[382575629,1756673445023,-480.0,0.00016825,2]
[382575631,1756673445034,-1015.8,0.00016825,2]
[382575633,1756673445044,-480.0,0.00016825,2]
[382575635,1756673445053,-480.0,0.00016825,2]
[382575637,1756673445064,-5491.99,0.00016825,2]
[382575639,1756673445074,-507.06,0.00016825,2]
[382575641,1756673445084,-480.0,0.00016825,2]
[382575643,1756673445096,-4163.29,0.00016825,2]
[382575645,1756673445106,-480.0,0.00016825,2]
[382575647,1756673445116,-1040.86,0.00016825,2]
[382575649,1756673445126,-484.48,0.00016825,2]
[382575651,1756673445135,-480.0,0.00016825,2]
[382575653,1756673445145,-1868.72,0.00016825,2]
[382575655,1756673445155,-620.62,0.00016825,2]
[382575657,1756673445165,-480.0,0.00016825,2]
[382575659,1756673445175,-480.0,0.00016825,2]
[382575661,1756673445185,-1102.26,0.00016825,2]
[382575664,1756673445195,-480.0,0.00016825,2]
[382575666,1756673445204,-480.0,0.00016825,2]
[382575668,1756673445214,-3885.57,0.00016825,2]
[382575670,1756673445224,-531.27,0.00016825,2]
[382575672,1756673445234,-480.0,0.00016825,2]
[382575674,1756673445244,-480.0,0.00016825,2]
[382575676,1756673445254,-480.0,0.00016825,2]
[382575678,1756673445264,-480.0,0.00016825,2]
[382575680,1756673445274,-2614.63,0.00016825,2]
[382575682,1756673445284,-480.0,0.00016825,2]
[382575684,1756673445293,-480.0,0.00016825,2]
[382575686,1756673445303,-481.17,0.00016825,2]
[382575688,1756673445313,-822.54,0.00016825,2]
[382575690,1756673445323,-480.0,0.00016825,2]
[382575692,1756673445334,-941.19,0.00016825,2]
[382575694,1756673445343,-480.0,0.00016826,2]
[382575696,1756673445353,-765.06,0.00016826,2]
[382575698,1756673445363,-480.0,0.00016826,2]
[382575700,1756673445373,-480.0,0.00016826,2]
[382575702,1756673445383,-480.0,0.00016826,2]
[382575704,1756673445392,-480.0,0.00016826,2]
[382575706,1756673445402,-480.0,0.00016826,2]
[382575708,1756673445411,-480.0,0.00016826,2]
[382575710,1756673445421,-480.0,0.00016826,2]
[382575712,1756673445430,-480.0,0.00016826,2]
[382575714,1756673445440,-151.0,0.00016826,2]
[382575716,1756673445449,-151.0,0.00016826,2]
[382575718,1756673445459,-728.62,0.00016826,2]
[382575720,1756673445468,-480.0,0.00016826,2]
[382575722,1756673445478,-184.400329,0.00016826,2]
[382575724,1756673445487,-151.0,0.00016826,2]
[382575726,1756673445496,-480.0,0.00016826,2]
[382575728,1756673445506,-480.0,0.00016826,2]
[382575730,1756673445515,-480.0,0.00016826,2]
[382575732,1756673445525,-480.0,0.00016826,2]
[382575734,1756673445535,-151.0,0.00016826,2]
[382575736,1756673445547,-151.0,0.00016826,2]
[382575738,1756673445556,-151.0,0.00016826,2]
[382575740,1756673445566,-151.0,0.00016826,2]
[382575742,1756673445575,-151.0,0.00016826,2]
[382575744,1756673445586,-151.0,0.00016826,2]
[382575746,1756673445595,-480.0,0.00016826,2]
[382575748,1756673445605,-480.0,0.00016826,2]
[382575750,1756673445616,-762.15,0.00016826,2]
[382575752,1756673445625,-151.0,0.00016826,2]
[382575754,1756673445635,-1144.33,0.00016826,2]
[382575756,1756673445644,-480.0,0.00016826,2]
[382575758,1756673445654,-480.0,0.00016826,2]
[382575760,1756673445663,-480.0,0.00016826,2]
[382575762,1756673445673,-480.0,0.00016826,2]
[382575764,1756673445683,-1050.48,0.00016826,2]
[382575766,1756673445694,-480.0,0.00016826,2]
[382575768,1756673445705,-1117.78,0.00016826,2]
[382575770,1756673445715,-151.0,0.00016826,2]
[382575772,1756673445725,-151.0,0.00016826,2]
[382575774,1756673445734,-151.0,0.00016826,2]
[382575776,1756673445744,-151.0,0.00016826,2]
[382575778,1756673445753,-151.0,0.00016826,2]
[382575780,1756673445763,-480.0,0.00016826,2]
[382575782,1756673445772,-1032.14,0.00016826,2]
[382575784,1756673445781,-831.94,0.00016826,2]
[382575787,1756673445791,-480.0,0.00016826,2]
[382575789,1756673445800,-560.19,0.00016826,2]
[382575791,1756673445810,-151.0,0.00016826,2]
[382575793,1756673445820,-151.0,0.00016826,2]
[382575795,1756673445829,-151.0,0.00016826,2]
[382575798,1756673445840,-484.38474704,0.00016826,2]
[382575800,1756673445849,-480.0,0.00016826,2]
[382575804,1756673445860,-1141.8,0.00016826,2]
[382575806,1756673445870,-480.0,0.00016826,2]
[382575808,1756673445879,-151.0,0.00016826,2]
[382575810,1756673445889,-416.68614184,0.00016826,2]
[382575812,1756673445898,-151.0,0.00016826,2]
[382575814,1756673445908,-480.0,0.00016826,2]
[382575816,1756673445918,-151.0,0.00016826,2]
[382575818,1756673445928,-573.44,0.00016826,2]
[382575820,1756673445937,-545.32,0.00016826,2]
[382575822,1756673445947,-480.0,0.00016826,2]
[382575824,1756673445957,-480.0,0.00016826,2]
[382575826,1756673445966,-716.31,0.00016826,2]
[382575828,1756673445976,-480.0,0.00016826,2]
[382575830,1756673445985,-582.97,0.00016826,2]
[382575832,1756673445994,-480.0,0.00016826,2]
[382575834,1756673446004,-151.0,0.00016826,2]
[382575836,1756673446014,-496.39,0.00016826,2]
[382575838,1756673446023,-151.0,0.00016826,2]
[382575840,1756673446033,-151.0,0.00016826,2]
[382575842,1756673446044,-646.68,0.00016826,2]
[382575844,1756673446053,-480.0,0.00016826,2]
[382575846,1756673446063,-480.0,0.00016826,2]
[382575848,1756673446072,-480.0,0.00016826,2]
[382575850,1756673446081,-480.0,0.00016826,2]
[382575852,1756673446091,-480.0,0.00016826,2]
[382575854,1756673446101,-480.0,0.00016826,2]
[382575856,1756673446110,-480.0,0.00016826,2]
[382575866,1756673446191,-893.99,0.00016826,2]
[382575867,1756673446201,-909.02,0.00016826,2]
[382575868,1756673446210,-151.0,0.00016826,2]
[382575869,1756673446219,-480.0,0.00016826,2]
[382575870,1756673446227,-904.5,0.00016826,2]
[382575871,1756673446236,-551.34257114,0.00016826,2]
[382575872,1756673446245,-480.0,0.00016826,2]
[382575873,1756673446254,-240.98376815,0.00016826,2]
[382575874,1756673446263,-613.27,0.00016826,2]
[382575875,1756673446271,-955.45,0.00016826,2]
[382575876,1756673446280,-480.0,0.00016826,2]
[382575877,1756673446289,-931.73,0.00016826,2]
[382575878,1756673446298,-411.61085373,0.00016826,2]
[382575879,1756673446307,-480.0,0.00016826,2]
[382575880,1756673446315,-480.0,0.00016826,2]
[382575881,1756673446324,-480.0,0.00016826,2]
[382575882,1756673446333,-480.0,0.00016826,2]
[382575883,1756673446342,-1045.92,0.00016826,2]
[382575884,1756673446351,-929.09,0.00016826,2]
[382575886,1756673446360,-480.0,0.00016826,2]
[382575888,1756673446369,-480.0,0.00016826,2]
[382575890,1756673446378,-480.0,0.00016826,2]
[382575892,1756673446387,-151.0,0.00016826,2]
[382575894,1756673446395,-886.28,0.00016826,2]
[382575896,1756673446404,-151.0,0.00016826,2]
[382575898,1756673446413,-151.0,0.00016826,2]
[382575900,1756673446423,-169.664587,0.00016826,2]
[382575902,1756673446432,-1574.05,0.00016826,2]
[382575904,1756673446440,-480.0,0.00016826,2]
[382575905,1756673446449,-151.0,0.00016826,2]
[382575907,1756673446459,-151.0,0.00016826,2]
[382575909,1756673446468,-151.0,0.00016826,2]
[382575911,1756673446478,-480.0,0.00016826,2]
[382575913,1756673446489,-151.0,0.00016826,2]
[382575916,1756673446499,-480.0,0.00016826,2]
[382575918,1756673446510,-672.84,0.00016826,2]
[382575919,1756673446521,-269.855448,0.00016826,2]
[382575921,1756673446531,-269.855448,0.00016826,2]
[382575923,1756673446541,-269.855448,0.00016826,2]
[382575925,1756673446551,-269.855448,0.00016826,2]
[382575928,1756673446560,-151.0,0.00016826,2]
[382575930,1756673446569,-164.34718,0.00016826,2]
[382575931,1756673446579,-480.0,0.00016826,2]
[382575933,1756673446588,-151.0,0.00016826,2]
[382575936,1756673446598,-151.0,0.00016826,2]
[382575938,1756673446608,-480.0,0.00016826,2]
[382575940,1756673446617,-480.0,0.00016826,2]
[382575941,1756673446627,-151.0,0.00016826,2]
[382575944,1756673446636,-480.0,0.00016826,2]
[382575946,1756673446647,-559.21,0.00016826,2]
[382575947,1756673446656,-480.0,0.00016826,2]
[382575950,1756673446667,-480.0,0.00016826,2]
[382575951,1756673446676,-630.76,0.00016826,2]
[382575954,1756673446687,-480.0,0.00016826,2]
[382575955,1756673446697,-480.0,0.00016826,2]
[382575957,1756673446707,-160.120775,0.00016826,2]
[382575959,1756673446718,-160.120775,0.00016826,2]
[382575961,1756673446727,-160.120775,0.00016826,2]
[382575964,1756673446736,-160.120775,0.00016826,2]
[382575966,1756673446746,-480.0,0.00016826,2]
[382575967,1756673446755,-480.0,0.00016826,2]
[382575969,1756673446765,-1595.9,0.00016826,2]
[382575972,1756673446775,-480.0,0.00016826,2]
[382575974,1756673446784,-953.75,0.00016826,2]
[382575976,1756673446793,-480.0,0.00016826,2]
[382575978,1756673446802,-555.53,0.00016826,2]
[382575980,1756673446811,-480.0,0.00016826,2]
[382575981,1756673446821,-480.0,0.00016826,2]
[382575983,1756673446830,-480.0,0.00016826,2]
[382575985,1756673446839,-545.88,0.00016826,2]
[382575987,1756673446849,-480.0,0.00016826,2]
[382575989,1756673446858,-509.83,0.00016826,2]
[382575991,1756673446867,-480.0,0.00016826,2]
[382575993,1756673446876,-480.0,0.00016826,2]
[382575995,1756673446886,-1156.65,0.00016826,2]
[382575997,1756673446896,-652.47,0.00016826,2]
[382575999,1756673446905,-480.0,0.00016826,2]
[382576001,1756673446914,-480.0,0.00016826,2]
[382576003,1756673446924,-591.58,0.00016826,2]
[382576005,1756673446933,-481.47,0.00016826,2]
[382576007,1756673446943,-500.0,0.00016827,2]
[382576009,1756673446953,-11364.23969824,0.00016827,2]
[382576011,1756673446962,-1122.21,0.00016827,2]
[382576013,1756673446971,-409.74668676,0.00016827,2]
[382576015,1756673446980,-480.0,0.00016827,2]
[382576017,1756673446989,-495.96,0.00016827,2]
[382576019,1756673447000,-531.27,0.00016827,2]
[382576021,1756673447010,-1075.81,0.00016827,2]
[382576023,1756673447019,-480.0,0.00016827,2]
[382576025,1756673447028,-1033.65,0.00016827,2]
[382576027,1756673447037,-1105.19,0.00016827,2]
[382576029,1756673447046,-210.11775553,0.00016827,2]
[382576031,1756673447056,-480.0,0.00016827,2]
[382576033,1756673447065,-480.0,0.00016827,2]
[382576035,1756673447074,-480.0,0.00016827,2]
[382576037,1756673447083,-480.0,0.00016827,2]
[382576039,1756673447092,-573.88,0.00016827,2]
[382576041,1756673447102,-480.0,0.00016827,2]
[382576043,1756673447111,-480.0,0.00016827,2]
[382576045,1756673447121,-480.0,0.00016827,2]
[382576047,1756673447131,-480.0,0.00016827,2]
[382576049,1756673447140,-480.0,0.00016827,2]
[382576051,1756673447149,-480.0,0.00016827,2]
[382576053,1756673447159,-480.0,0.00016827,2]
[382576055,1756673447170,-480.0,0.00016827,2]
[382576057,1756673447180,-480.0,0.00016827,2]
[382576059,1756673447190,-480.0,0.00016827,2]
[382576061,1756673447199,-480.0,0.00016827,2]
[382576063,1756673447208,-480.0,0.00016827,2]
[382576065,1756673447217,-480.0,0.00016827,2]
[382576067,1756673447227,-480.0,0.00016827,2]
[382576069,1756673447236,-480.0,0.00016827,2]
[382576071,1756673447245,-480.0,0.00016827,2]
[382576073,1756673447255,-618.67,0.00016827,2]
[382576075,1756673447264,-480.0,0.00016827,2]
[382576077,1756673447274,-480.0,0.00016827,2]
[382576079,1756673447284,-480.0,0.00016827,2]
[382576081,1756673447293,-480.0,0.00016827,2]
[382576083,1756673447303,-595.68,0.00016827,2]
[382576085,1756673447313,-480.0,0.00016827,2]
[382576087,1756673447323,-480.0,0.00016827,2]
[382576089,1756673447334,-480.0,0.00016827,2]
[382576091,1756673447343,-499.51,0.00016827,2]
[382576093,1756673447352,-257.29803267,0.00016827,2]
[382576095,1756673447361,-480.0,0.00016827,2]
[382576097,1756673447370,-480.0,0.00016827,2]
[382576099,1756673447379,-480.0,0.00016827,2]
[382576101,1756673447387,-812.3,0.00016827,2]
[382576103,1756673447396,-480.0,0.00016827,2]
[382576105,1756673447405,-500.0,0.00016827,2]
[382576107,1756673447415,-480.0,0.00016827,2]
[382576108,1756673447424,-703.21,0.00016827,2]
[382576110,1756673447433,-480.0,0.00016827,2]
[382576112,1756673447442,-480.0,0.00016827,2]
[382576114,1756673447452,-480.0,0.00016827,2]
[382576116,1756673447461,-480.0,0.00016827,2]
[382576118,1756673447471,-511.75,0.00016827,2]
[382576120,1756673447480,-480.0,0.00016827,2]
[382576122,1756673447490,-480.0,0.00016827,2]
[382576124,1756673447499,-654.74,0.00016827,2]
[382576126,1756673447509,-480.0,0.00016827,2]
[382576128,1756673447518,-874.53,0.00016827,2]
[382576130,1756673447528,-480.0,0.00016827,2]
[382576132,1756673447539,-480.0,0.00016827,2]
[382576134,1756673447549,-492.47,0.00016827,2]
[382576136,1756673447558,-480.0,0.00016827,2]
[382576138,1756673447567,-480.0,0.00016827,2]
[382576140,1756673447576,-480.0,0.00016827,2]
[382576142,1756673447586,-480.0,0.00016827,2]
[382576144,1756673447595,-480.0,0.00016827,2]
[382576146,1756673447605,-480.0,0.00016827,2]
[382576148,1756673447615,-480.0,0.00016827,2]
[382576150,1756673447625,-1196.05,0.00016827,2]
[382576152,1756673447634,-480.0,0.00016827,2]
[382576154,1756673447644,-704.47,0.00016827,2]
[382576156,1756673447653,-480.0,0.00016827,2]
[382576158,1756673447663,-480.0,0.00016827,2]
[382576160,1756673447672,-575.60032032,0.00016827,2]
[382576162,1756673447681,-151.0,0.00016827,2]
[382576164,1756673447690,-151.0,0.00016827,2]
[382576166,1756673447699,-151.0,0.00016827,2]
[382576168,1756673447708,-151.0,0.00016827,2]
[382576170,1756673447718,-151.0,0.00016827,2]
[382576172,1756673447727,-151.0,0.00016827,2]
[382576174,1756673447736,-160.0,0.00016827,2]
[382576176,1756673447745,-160.0,0.00016827,2]
[382576178,1756673447754,-160.0,0.00016827,2]
[382576180,1756673447765,-417.15472785,0.00016827,2]
[382576182,1756673447775,-160.0,0.00016827,2]
[382576184,1756673447784,-160.0,0.00016827,2]
[382576186,1756673447793,-217.4012883,0.00016827,2]
[382576188,1756673447803,-160.0,0.00016827,2]
[382576190,1756673447813,-845.95363151,0.00016827,2]
[382576192,1756673447822,-232.78794292,0.00016827,2]
[382576194,1756673447831,-425.75173308,0.00016827,2]
[382576196,1756673447842,-530.02580203,0.00016827,2]
[382576198,1756673447851,-160.0,0.00016827,2]
[382576200,1756673447861,-151.0,0.00016828,2]
[382576202,1756673447870,-500.0,0.00016828,2]
[382576204,1756673447880,-151.0,0.00016828,2]
[382576206,1756673447889,-500.0,0.00016828,2]
[382576208,1756673447899,-1311.0,0.00016828,2]
[382576210,1756673447909,-151.0,0.00016828,2]
[382576212,1756673447918,-198.0,0.00016828,2]
[382576214,1756673447928,-198.0,0.00016828,2]
[382576216,1756673447938,-578.34246342,0.00016828,2]
[382576218,1756673447947,-500.0,0.00016828,2]
[382576220,1756673447956,-198.0,0.00016828,2]
[382576222,1756673447966,-619.28300412,0.00016828,2]
[382576224,1756673447975,-151.0,0.00016828,2]
[382576226,1756673447984,-198.0,0.00016828,2]
[382576228,1756673447995,-151.0,0.00016828,2]
[382576230,1756673448004,-480.0,0.00016828,2]
[382576232,1756673448014,-535.16,0.00016828,2]
[382576234,1756673448023,-480.0,0.00016828,2]
[382576236,1756673448033,-577.8,0.00016828,2]
[382576238,1756673448042,-481.42,0.00016828,2]
[382576240,1756673448052,-480.0,0.00016828,2]
[382576242,1756673448061,-318.0,0.00016849,2]
[382576244,1756673448073,-1804.51294593,0.00016865,2]
[382576246,1756673448083,-329.901,0.00016873,2]
[382576248,1756673448093,-300.0,0.00016882,2]
[382576250,1756673448103,-300.0,0.00016882,2]
[382576252,1756673448112,-300.0,0.00016882,2]
[382576254,1756673448122,-300.0,0.00016882,2]
[382576256,1756673448132,-300.0,0.00016882,2]
[382576258,1756673448142,-300.0,0.00016882,2]
[382576260,1756673448153,-300.0,0.00016882,2]
[382576262,1756673448163,-300.0,0.00016882,2]
[382576264,1756673448174,-300.0,0.00016882,2]
[382576267,1756673448185,-300.0,0.00016882,2]
[382576268,1756673448194,-300.0,0.00016882,2]
[382576271,1756673448204,-300.0,0.00016882,2]
[382576273,1756673448213,-300.0,0.00016882,2]
[382576275,1756673448223,-300.0,0.00016882,2]
[382576277,1756673448232,-300.0,0.00016882,2]
[382576278,1756673448241,-600.0,0.00016882,2]
[382576280,1756673448250,-881.86472336,0.00016888,2]
[382576283,1756673448260,-151.0,0.000169,2]
[382576285,1756673448270,-151.0,0.000169,2]
[382576287,1756673448279,-151.0,0.000169,2]
[382576288,1756673448288,-436.0,0.00016904,2]
[382576290,1756673448298,-729.42,0.00016982,2]
[382576292,1756673448307,-897.0,0.00016982,2]
[382576294,1756673448317,-867.52,0.00016982,2]
[382576296,1756673448326,-480.0,0.00016982,2]
[382576298,1756673448336,-480.0,0.00016982,2]
[382576300,1756673448345,-480.0,0.00016982,2]
[382576302,1756673448355,-480.0,0.00016982,2]
[382576304,1756673448364,-480.0,0.00016982,2]
[382576306,1756673448374,-151.123548,0.00016982,2]
[382576308,1756673448383,-151.0,0.00016982,2]
[382576310,1756673448393,-151.0,0.00016982,2]
[382576312,1756673448402,-168.360324,0.00016982,2]
[382576314,1756673448412,-199.450143,0.00016982,2]
[382576316,1756673448422,-4056.09397422,0.00016985,2]
[382576318,1756673448432,-436.0,0.00016988,2]
[382576320,1756673448442,-881.86472336,0.00016999,2]
[382576322,1756673448452,-151.0,0.00017,2]
[382576324,1756673448461,-174.4167197,0.00017,2]
[382576326,1756673448471,-151.0,0.00017,2]
[382576328,1756673448481,-151.0,0.00017,2]
[382576330,1756673448490,-151.0,0.00017,2]
[382576332,1756673448499,-151.0,0.00017,2]
[382576334,1756673448509,-176.48709,0.00017,2]
[382576336,1756673448518,-151.0,0.00017,2]
[382576338,1756673448528,-151.0,0.00017,2]
[382576340,1756673448541,-151.0,0.00017,2]
[382576342,1756673448551,-151.0,0.00017,2]
[382576344,1756673448560,-269.855448,0.00017,2]
[382576346,1756673448569,-269.855448,0.00017,2]
[382576348,1756673448579,-269.855448,0.00017,2]
[382576350,1756673448588,-269.855448,0.00017,2]
[382576352,1756673448598,-151.0,0.00017,2]
[382576354,1756673448607,-151.0,0.00017039,2]
[382576356,1756673448616,-154.702727,0.00017039,2]
[382576358,1756673448626,-151.0,0.00017039,2]
[382576360,1756673448635,-270.445229,0.00017039,2]
[382576362,1756673448645,-151.0,0.00017039,2]
[382576364,1756673448654,-151.0,0.00017039,2]
[382576366,1756673448663,-151.0,0.00017039,2]
[382576368,1756673448673,-151.0,0.00017039,2]
[382576370,1756673448683,-158.27277284,0.00017039,2]
[382576372,1756673448692,-151.0,0.00017039,2]
[382576374,1756673448702,-151.0,0.00017039,2]
[382576376,1756673448711,-225.188496,0.00017039,2]
[382576378,1756673448721,-289.739314,0.00017039,2]
[382576380,1756673448730,-151.0,0.00017039,2]
[382576382,1756673448740,-151.0,0.00017039,2]
[382576384,1756673448749,-151.0,0.00017039,2]
[382576386,1756673448759,-151.0,0.00017039,2]
[382576388,1756673448768,-151.0,0.00017039,2]
[382576390,1756673448778,-151.0,0.00017039,2]
[382576392,1756673448788,-151.0,0.00017039,2]
[382576394,1756673448798,-151.0,0.00017039,2]
[382576396,1756673448808,-151.0,0.00017039,2]
[382576398,1756673448817,-151.0,0.00017039,2]
[382576400,1756673448827,-151.0,0.00017039,2]
[382576402,1756673448836,-151.0,0.00017039,2]
[382576404,1756673448846,-293.103662,0.00017039,2]
[382576406,1756673448856,-151.0,0.00017039,2]
[382576408,1756673448866,-160.120775,0.00017039,2]
[382576410,1756673448876,-160.120775,0.00017039,2]
[382576412,1756673448887,-160.120775,0.00017039,2]
[382576414,1756673448897,-160.120775,0.00017039,2]
[382576416,1756673448907,-151.0,0.00017039,2]
[382576418,1756673448916,-151.0,0.00017039,2]
[382576420,1756673448926,-151.0,0.00017039,2]
[382576422,1756673448935,-375.59751938,0.00017042,2]
[382576424,1756673448945,-500.0,0.00017073,2]
[382576426,1756673448955,-194.94272003,0.00017073,2]
[382576428,1756673448964,-500.0,0.00017073,2]
[382576430,1756673448973,-500.0,0.00017073,2]
[382576432,1756673448983,-500.0,0.00017073,2]
[382576434,1756673448992,-500.0,0.00017073,2]
[382576436,1756673449002,-500.0,0.00017073,2]
[382576437,1756673449011,-500.0,0.00017073,2]
[382576439,1756673449021,-500.0,0.00017073,2]
[382576441,1756673449031,-500.0,0.00017073,2]
[382576443,1756673449040,-500.0,0.00017073,2]
[382576445,1756673449050,-500.0,0.00017073,2]
[382576447,1756673449059,-500.0,0.00017073,2]
[382576449,1756673449069,-500.0,0.00017073,2]
[382576451,1756673449079,-500.0,0.00017073,2]
[382576453,1756673449089,-373.13586244,0.00017073,2]
[382576455,1756673449098,-500.0,0.00017073,2]
[382576457,1756673449108,-500.0,0.00017073,2]
[382576459,1756673449117,-524.36340573,0.00017073,2]
[382576461,1756673449127,-287.782845,0.00017073,2]
[382576463,1756673449136,-151.0,0.00017073,2]
[382576465,1756673449146,-500.0,0.00017074,2]
[382576467,1756673449155,-480.0,0.00017098,2]
[382576469,1756673449165,-485.39,0.00017098,2]
[382576471,1756673449175,-480.0,0.00017098,2]
[382576473,1756673449184,-1365.93,0.00017098,2]
[382576474,1756673449194,-730.45,0.00017098,2]
[382576476,1756673449204,-942.24,0.00017098,2]
[382576478,1756673449214,-962.74,0.00017098,2]
[382576480,1756673449224,-779.31,0.00017098,2]
[382576482,1756673449234,-481.12,0.00017098,2]
[382576484,1756673449244,-493.87,0.00017098,2]
[382576486,1756673449253,-480.0,0.00017098,2]
[382576488,1756673449264,-480.0,0.00017098,2]
[382576490,1756673449274,-583.55,0.00017098,2]
[382576492,1756673449285,-480.0,0.00017098,2]
[382576494,1756673449294,-504.26,0.00017098,2]
[382576496,1756673449303,-724.91,0.00017098,2]
[382576498,1756673449313,-480.0,0.00017098,2]
[382576500,1756673449323,-480.0,0.00017098,2]
[382576502,1756673449333,-480.0,0.00017098,2]
[382576504,1756673449342,-480.0,0.00017098,2]
[382576506,1756673449351,-838.03,0.00017098,2]
[382576508,1756673449360,-480.0,0.00017098,2]
[382576510,1756673449370,-832.52,0.00017098,2]
[382576512,1756673449380,-538.97,0.00017098,2]
[382576514,1756673449390,-480.0,0.00017098,2]
[382576516,1756673449400,-480.0,0.00017098,2]
[382576518,1756673449410,-480.0,0.00017098,2]
[382576520,1756673449419,-480.0,0.00017098,2]
[382576521,1756673449429,-888.43,0.00017098,2]
[382576523,1756673449440,-584.41,0.00017098,2]
[382576525,1756673449450,-677.01,0.00017098,2]
[382576527,1756673449460,-1118.76,0.00017098,2]
[382576529,1756673449469,-617.52,0.00017098,2]
[382576531,1756673449478,-480.0,0.00017098,2]
[382576533,1756673449488,-1071.48,0.00017098,2]
[382576535,1756673449497,-480.0,0.00017098,2]
[382576537,1756673449507,-480.0,0.00017098,2]
[382576539,1756673449516,-480.0,0.00017098,2]
[382576541,1756673449526,-502.36,0.00017098,2]
[382576543,1756673449539,-480.0,0.00017098,2]
[382576545,1756673449549,-701.86,0.00017098,2]
[382576547,1756673449559,-480.0,0.00017098,2]
[382576549,1756673449569,-2058.26,0.00017098,2]
[382576551,1756673449579,-480.0,0.00017098,2]
[382576553,1756673449590,-480.0,0.00017098,2]
[382576555,1756673449599,-970.63,0.00017098,2]
[382576557,1756673449609,-702.06,0.00017098,2]
[382576559,1756673449620,-480.0,0.00017098,2]
[382576561,1756673449631,-480.0,0.00017098,2]
[382576563,1756673449641,-480.0,0.00017098,2]
[382576564,1756673449650,-480.0,0.00017098,2]
[382576566,1756673449659,-486.67,0.00017098,2]
[382576568,1756673449669,-480.0,0.00017098,2]
[382576570,1756673449679,-480.0,0.00017098,2]
[382576572,1756673449688,-480.0,0.00017098,2]
[382576574,1756673449699,-480.0,0.00017098,2]
[382576576,1756673449709,-480.0,0.00017098,2]